bitfinex-derivatives/quotes_BTCF0:USTF0_20240829
["timestamp","ask_amount","ask_price","bid_price","bid_amount"]
[1724896996833,0.1081309,59041.0,59040.0,0.807267]
[1724896996834,0.1211309,59041.0,59040.0,0.807267]
[1724896997533,0.1121309,59041.0,59040.0,0.807267]
[1724896998118,0.1121309,59041.0,59040.0,0.3608]
[1724896998119,0.1967959,59041.0,59040.0,0.3608]
[1724896999238,0.1967959,59041.0,59040.0,0.3618]
[1724896999838,0.1927959,59041.0,59040.0,0.3618]
[1724897000140,0.11949272,59041.0,59040.0,0.001]
[1724897001334,0.12249272,59041.0,59040.0,0.002]
[1724897001834,0.084668,59039.0,59030.0,0.27308906]
[1724897002039,0.084677,59034.0,59030.0,0.27308906]
[1724897002234,0.084677,59034.0,59033.0,0.3608]
[1724897003933,0.085677,59034.0,59033.0,0.3608]
[1724897004640,0.084678,59032.0,59030.0,0.27308906]
[1724897004839,0.0678,59031.0,59030.0,0.27308906]
[1724897006135,0.0678,59031.0,59028.0,0.44573718]
[1724897006339,0.15248,59031.0,59028.0,0.44573718]
[1724897006731,0.16248,59031.0,59030.0,0.001]
[1724897007140,0.16348,59031.0,59030.0,0.002]
[1724897007534,0.16348,59031.0,59030.0,0.001]
[1724897008037,0.084681,59030.0,59028.0,0.44773718]
[1724897008237,0.084681,59030.0,59028.0,0.44673718]
[1724897009741,0.084681,59030.0,59028.0,0.08493718]
[1724897009933,0.084681,59030.0,59028.0,0.44573718]
[1724897010135,0.085681,59030.0,59028.0,0.08593718]
[1724897010335,0.085681,59030.0,59028.0,0.44673718]
[1724897010534,0.093681,59030.0,59028.0,0.44773718]
[1724897011137,0.093681,59030.0,59028.0,0.08693718]
[1724897011445,0.093681,59030.0,59028.0,0.44773718]
[1724897011737,0.093681,59030.0,59028.0,0.08693718]
[1724897011945,0.093681,59030.0,59028.0,0.44773718]
[1724897012144,0.084682,59029.0,59028.0,0.44773718]
[1724897012341,0.24766718,59029.0,59028.0,0.001]
[1724897012539,0.084691,59023.0,59021.0,0.084694]
[1724897012740,0.07830318,59022.0,59021.0,0.084694]
[1724897012937,0.084687,59026.0,59023.0,0.08469]
[1724897013137,0.07830318,59025.0,59024.0,0.08469]
[1724897013351,0.07830318,59026.0,59024.0,0.08469]
[1724897013649,0.07830318,59026.0,59025.0,0.3608]
[1724897013650,0.07828592,59026.0,59025.0,0.3608]
[1724897013847,0.07828592,59026.0,59025.0,0.445488]
[1724897014145,0.084686,59027.0,59025.0,0.445488]
[1724897014542,0.003,59026.0,59025.0,0.445488]
[1724897015045,0.004,59026.0,59025.0,0.445488]
[1724897016045,0.001,59026.0,59025.0,0.446488]
[1724897016747,0.12071013,59027.0,59025.0,0.445488]
[1724897016748,0.11771013,59027.0,59025.0,0.445488]
[1724897016945,0.006,59026.0,59025.0,0.446488]
[1724897017352,0.009,59026.0,59025.0,0.446488]
[1724897017944,0.006,59026.0,59025.0,0.446488]
[1724897019054,0.12371013,59027.0,59026.0,0.084687]
[1724897019541,0.03902413,59027.0,59026.0,0.084687]
[1724897019955,0.01878625,59031.0,59025.0,0.3618]
[1724897020146,0.08468,59031.0,59030.0,0.3608]
[1724897021350,0.08668,59031.0,59030.0,0.3618]
[1724897022157,0.16496592,59031.0,59030.0,0.3618]
[1724897022639,0.17296592,59031.0,59030.0,0.3628]
[1724897023847,0.17296592,59031.0,59030.0,0.447481]
[1724897024052,0.29296592,59031.0,59030.0,0.447481]
[1724897028552,0.08828592,59031.0,59030.0,0.447481]
[1724897029048,0.01,59031.0,59030.0,0.447481]
[1724897030055,0.01,59031.0,59030.0,0.567481]
[1724897030250,0.01,59031.0,59030.0,0.206681]
[1724897030447,0.01,59031.0,59030.0,0.567481]
[1724897034256,0.01,59031.0,59030.0,0.928281]
[1724897034457,0.01,59031.0,59030.0,0.206681]
[1724897034662,0.01,59031.0,59030.0,0.928281]
[1724897036554,0.01,59031.0,59030.0,1.012962]
[1724897036759,0.01,59031.0,59030.0,1.605843]
[1724897040065,0.01,59031.0,59030.0,1.634183]
[1724897040560,1e-06,59031.0,59030.0,2.234183]
[1724897045071,1e-06,59031.0,59030.0,1.549502]
[1724897047368,1e-06,59031.0,59030.0,1.041302]
[1724897047562,0.03057999,59036.0,59035.0,0.084674]
[1724897047863,0.03057999,59036.0,59035.0,0.565474]
[1724897048663,0.10886591,59036.0,59035.0,0.565474]
[1724897049262,0.10986591,59036.0,59035.0,0.565474]
[1724897050667,0.10886591,59036.0,59035.0,0.565474]
[1724897052370,0.03057999,59036.0,59035.0,0.565474]
[1724897055278,0.23525199,59036.0,59035.0,0.445474]
[1724897055975,0.11525199,59036.0,59035.0,0.445474]
[1724897057579,0.11525199,59036.0,59035.0,0.446474]
[1724897057973,0.11525199,59036.0,59035.0,0.447474]
[1724897058376,0.11525199,59036.0,59035.0,0.446474]
[1724897058874,0.11525199,59036.0,59035.0,0.447474]
[1724897060581,0.03057999,59036.0,59035.0,0.447474]
[1724897066888,0.10886591,59036.0,59035.0,0.447474]
[1724897067381,0.03057999,59036.0,59035.0,0.447474]
[1724897070875,0.23525199,59036.0,59035.0,0.447474]
[1724897071884,0.23525199,59036.0,59035.0,0.475814]
[1724897076889,0.03057999,59036.0,59035.0,0.475814]
[1724897083696,0.03057999,59036.0,59035.0,0.474814]
[1724897083992,0.03057999,59036.0,59035.0,0.473814]
[1724897085089,0.05715655,59041.0,59035.0,0.473814]
[1724897085388,0.12,59043.0,59040.0,0.3608]
[1724897085589,0.204662,59043.0,59040.0,0.3608]
[1724897086489,0.204662,59043.0,59040.0,0.3618]
[1724897086797,0.204662,59043.0,59042.0,0.084664]
[1724897087492,0.204662,59043.0,59042.0,0.113004]
[1724897087693,0.204662,59043.0,59042.0,0.473804]
[1724897088483,0.23490266,59043.0,59042.0,0.473804]
[1724897089191,0.23490266,59043.0,59042.0,0.474804]
[1724897089786,0.23490266,59043.0,59042.0,0.475804]
[1724897090495,0.15024066,59043.0,59042.0,0.475804]
[1724897095987,0.23490266,59043.0,59042.0,0.39114]
[1724897096190,0.23490266,59043.0,59042.0,0.002]
[1724897096395,0.03024066,59043.0,59042.0,0.4828]
[1724897096696,0.084658,59046.0,59045.0,0.084659]
[1724897097492,0.24994075,59046.0,59045.0,0.084659]
[1724897097906,0.36994075,59046.0,59045.0,0.084659]
[1724897098103,0.03048255,59047.0,59046.0,0.084658]
[1724897098295,0.03048255,59047.0,59046.0,0.149558]
[1724897099701,0.1957653,59047.0,59046.0,0.149558]
[1724897099904,0.10874441,59047.0,59046.0,0.150558]
[1724897100106,0.10874441,59047.0,59046.0,0.151558]
[1724897100306,0.03048255,59047.0,59046.0,0.151558]
[1724897100508,0.07826186,59055.0,59046.0,0.57498]
[1724897100705,0.17809735,59079.0,59046.0,0.57498]
[1724897100706,0.598207,59068.0,59055.0,0.12]
[1724897101008,0.26435719,59066.0,59062.0,0.565435]
[1724897101211,0.07824218,59065.0,59062.0,0.565435]
[1724897101400,0.07824218,59064.0,59062.0,0.565435]
[1724897101704,0.07824218,59063.0,59062.0,0.565435]
[1724897103614,0.07824218,59063.0,59062.0,0.566435]
[1724897104107,0.07824218,59063.0,59062.0,0.567435]
[1724897104499,0.12,59064.0,59062.0,0.3628]
[1724897104704,0.084634,59063.0,59062.0,0.002]
[1724897105906,0.084634,59063.0,59062.0,0.001]
[1724897106112,0.084634,59063.0,59062.0,0.002]
[1724897113916,0.24989707,59063.0,59062.0,0.00180001]
[1724897116017,0.16287618,59063.0,59062.0,0.00180001]
[1724897119416,0.07824218,59063.0,59062.0,0.12180001]
[1724897119622,0.07824218,59063.0,59062.0,0.56723501]
[1724897121025,0.11762826,59067.0,59066.0,0.084629]
[1724897121026,0.03060737,59067.0,59066.0,0.084629]
[1724897121222,0.08487877,59069.0,59068.0,0.084627]
[1724897121522,0.08487877,59069.0,59068.0,0.445427]
[1724897122420,0.00025277,59069.0,59068.0,0.445427]
[1724897122629,0.03015847,59069.0,59068.0,0.530054]
[1724897122815,0.00025277,59069.0,59068.0,0.530054]
[1724897123518,0.00025277,59069.0,59068.0,0.531054]
[1724897123821,0.00025277,59069.0,59068.0,0.532054]
[1724897124411,0.03050872,59069.0,59068.0,0.532054]
[1724897130420,0.03050872,59069.0,59068.0,0.447427]
[1724897131129,0.03050872,59069.0,59068.0,0.512327]
[1724897136320,0.09126875,59079.0,59068.0,0.4277]
[1724897136519,0.084616,59076.0,59075.0,0.084616]
[1724897138724,0.084616,59076.0,59075.0,0.085616]
[1724897139422,0.084616,59076.0,59075.0,0.086616]
[1724897140024,0.00836369,59077.0,59075.0,0.002]
[1724897140324,0.084613,59078.0,59077.0,0.084614]
[1724897141825,0.084613,59078.0,59077.0,0.204614]
[1724897142033,0.084613,59078.0,59077.0,0.205614]
[1724897143734,0.084613,59078.0,59077.0,0.085614]
[1724897143930,0.204613,59078.0,59077.0,0.002]
[1724897144127,1.157826,59078.0,59077.0,0.002]
[1724897144323,1.17053022,59078.0,59077.0,0.002]
[1724897144633,0.21731722,59078.0,59077.0,0.002]
[1724897144827,0.204613,59078.0,59077.0,0.002]
[1724897145137,0.084613,59078.0,59077.0,0.002]
[1724897146426,0.204613,59078.0,59077.0,0.002]
[1724897150034,0.204613,59078.0,59076.0,0.25084301]
[1724897150035,0.084614,59077.0,59076.0,0.25084301]
[1724897150234,0.16283091,59077.0,59076.0,0.25084301]
[1724897151734,0.16283091,59077.0,59076.0,0.25284301]
[1724897151933,0.24980182,59077.0,59076.0,0.25284301]
[1724897153445,0.28043324,59077.0,59076.0,0.25284301]
[1724897156944,0.19346233,59077.0,59076.0,0.002]
[1724897157937,0.11524542,59077.0,59076.0,0.002]
[1724897159134,0.084622,59071.0,59070.0,0.00025396]
[1724897159335,0.613,59071.0,59059.0,0.0639]
[1724897159641,0.12,59062.0,59059.0,0.148539]
[1724897159829,0.204635,59062.0,59059.0,0.268539]
[1724897160029,0.084638,59060.0,59059.0,0.0639]
[1724897160337,0.204638,59060.0,59059.0,0.0639]
[1724897160538,0.084638,59060.0,59059.0,0.0639]
[1724897161141,0.001,59060.0,59059.0,0.0639]
[1724897161441,0.001,59060.0,59059.0,0.148539]
[1724897162034,0.001,59060.0,59059.0,0.741138]
[1724897162344,0.03098036,59065.0,59064.0,0.084632]
[1724897162643,0.03098036,59065.0,59064.0,0.565432]
[1724897163237,0.03098036,59065.0,59064.0,1.757984]
[1724897163440,0.08461,59080.0,59064.0,1.673352]
[1724897163641,0.08461,59080.0,59077.0,0.12]
[1724897163833,0.23462481,59080.0,59078.0,0.1231]
[1724897164146,0.11462481,59080.0,59078.0,0.1231]
[1724897164945,0.11462481,59080.0,59079.0,0.084611]
[1724897165437,0.03001481,59080.0,59079.0,0.084611]
[1724897165646,0.13216,59082.0,59079.0,0.084611]
[1724897165841,0.13216,59082.0,59079.0,0.445411]
[1724897166736,0.16274515,59082.0,59079.0,0.446411]
[1724897166938,0.16274515,59082.0,59079.0,0.085611]
[1724897167238,0.16274515,59082.0,59080.0,0.3608]
[1724897167943,0.16274515,59082.0,59079.0,0.085611]
[1724897168141,0.16274515,59082.0,59079.0,0.447411]
[1724897168847,0.16274515,59082.0,59080.0,0.084609]
[1724897169239,0.16274515,59082.0,59080.0,0.085609]
[1724897169641,0.16374515,59082.0,59080.0,0.086609]
[1724897170439,0.03158515,59082.0,59081.0,0.084608]
[1724897171354,0.03158515,59082.0,59081.0,0.374608]
[1724897172449,0.03158515,59082.0,59081.0,0.375608]
[1724897173147,0.03058515,59082.0,59081.0,0.375608]
[1724897173357,0.001,59082.0,59081.0,0.376608]
[1724897176851,0.084592,59093.0,59092.0,0.084592]
[1724897178448,0.084592,59093.0,59092.0,0.086592]
[1724897178849,0.48528329,59096.0,59094.0,0.084588]
[1724897179050,0.48440329,59096.0,59094.0,0.084588]
[1724897179949,0.12360329,59096.0,59094.0,0.084588]
[1724897180152,0.07820013,59095.0,59094.0,0.001]
[1724897180858,0.07820013,59095.0,59094.0,0.085588]
[1724897181257,0.16278813,59095.0,59094.0,0.001]
[1724897181444,0.16278813,59095.0,59090.0,0.084594]
[1724897181445,0.084591,59093.0,59090.0,0.084594]
[1724897181647,0.07820013,59092.0,59090.0,0.084594]
[1724897181949,0.07820013,59091.0,59090.0,0.084594]
[1724897183043,0.07820013,59091.0,59090.0,0.085594]
[1724897184052,0.07820013,59091.0,59090.0,0.086594]
[1724897188253,0.084593,59092.0,59090.0,0.086594]
[1724897188658,0.03901629,59096.0,59090.0,0.086594]
[1724897188855,0.1694,59098.0,59090.0,0.086594]
[1724897189259,0.17909525,59097.0,59090.0,0.085594]
[1724897189462,0.17909525,59097.0,59090.0,0.086594]
[1724897189760,0.084593,59092.0,59090.0,0.086594]
[1724897189967,0.084594,59091.0,59090.0,0.086594]
[1724897190169,0.084594,59091.0,59090.0,0.002]
[1724897190659,0.084594,59091.0,59090.0,0.001]
[1724897190866,0.084598,59088.0,59087.0,0.00025396]
[1724897191963,0.084598,59088.0,59087.0,0.00125396]
[1724897192466,0.084598,59088.0,59087.0,0.00225396]
[1724897193563,0.084598,59088.0,59087.0,0.00125396]
[1724897193760,0.084598,59088.0,59087.0,0.08685296]
[1724897194664,0.17802756,59098.0,59087.0,0.00225396]
[1724897194977,0.17802756,59098.0,59092.0,0.084592]
[1724897194978,0.08459,59094.0,59092.0,0.084592]
[1724897195162,0.08459,59094.0,59093.0,0.0604]
[1724897195467,0.08459,59094.0,59093.0,0.1256]
[1724897195671,0.34056679,59098.0,59094.0,0.084588]
[1724897195672,0.07820013,59097.0,59094.0,0.084588]
[1724897195861,0.07820013,59096.0,59094.0,0.084588]
[1724897196365,0.16278713,59096.0,59094.0,0.084588]
[1724897196561,0.084587,59096.0,59094.0,0.084588]
[1724897196861,0.16278713,59096.0,59094.0,0.084588]
[1724897197060,0.084587,59096.0,59094.0,0.084588]
[1724897197260,0.07820013,59095.0,59094.0,0.084588]
[1724897197871,0.07820013,59095.0,59094.0,0.086588]
[1724897198567,0.07820013,59095.0,59094.0,0.085588]
[1724897198774,0.07820013,59095.0,59094.0,0.086588]
[1724897199364,0.11379676,59098.0,59094.0,0.086588]
[1724897199565,0.07819476,59097.0,59094.0,0.086588]
[1724897199774,0.16278176,59096.0,59095.0,0.084588]
[1724897200370,0.00858354,59096.0,59095.0,0.084588]
[1724897200566,0.03041923,59098.0,59097.0,0.084585]
[1724897201071,0.03041923,59098.0,59097.0,0.445385]
[1724897202168,0.03041923,59098.0,59097.0,0.446385]
[1724897203163,0.03041923,59098.0,59097.0,0.447385]
[1724897205665,0.03041923,59098.0,59097.0,1.124195]
[1724897205870,0.00840384,59108.0,59107.0,0.084571]
[1724897206071,0.084561,59114.0,59107.0,0.3608]
[1724897206274,0.09317648,59114.0,59113.0,0.3608]
[1724897206868,0.09317648,59114.0,59113.0,0.445362]
[1724897207178,0.02976924,59114.0,59113.0,0.445362]
[1724897207375,0.00863072,59122.0,59118.0,0.084555]
[1724897207576,0.446228,59123.0,59119.0,0.084553]
[1724897207776,0.4753001,59123.0,59119.0,0.084553]
[1724897208181,0.48374457,59123.0,59120.0,0.084551]
[1724897209278,0.48374457,59123.0,59121.0,0.08455]
[1724897209279,0.39919657,59123.0,59121.0,0.08455]
[1724897210373,0.03839657,59123.0,59121.0,0.08555]
[1724897210577,0.3608,59130.0,59121.0,0.08555]
[1724897210787,0.084545,59126.0,59121.0,0.08655]
[1724897210986,0.09319195,59126.0,59121.0,0.08655]
[1724897211284,0.19143765,59125.0,59124.0,0.445346]
[1724897211491,0.37349584,59135.0,59124.0,0.3608]
[1724897211783,0.19143765,59134.0,59124.0,0.3608]
[1724897212171,0.084535,59133.0,59129.0,0.3608]
[1724897213386,0.084536,59132.0,59129.0,0.3608]
[1724897213887,0.084537,59131.0,59129.0,0.3608]
[1724897214280,0.084537,59131.0,59129.0,0.3628]
[1724897216480,0.084538,59130.0,59129.0,0.002]
[1724897216990,0.084538,59130.0,59129.0,0.001]
[1724897217188,0.174538,59130.0,59129.0,0.002]
[1724897218390,0.61590851,59130.0,59118.0,0.29]
[1724897218693,0.084548,59124.0,59115.0,0.27308906]
[1724897218900,0.16510851,59123.0,59115.0,0.27308906]
[1724897219087,0.16510851,59122.0,59112.0,0.29]
[1724897219286,0.16510851,59121.0,59114.0,0.00025373]
[1724897219488,0.16510851,59120.0,59114.0,0.00025373]
[1724897219696,0.16510851,59119.0,59118.0,0.084555]
[1724897220393,0.16510851,59119.0,59118.0,0.143755]
[1724897220895,0.19545027,59119.0,59118.0,0.143755]
[1724897221196,0.19545027,59119.0,59118.0,0.494555]
[1724897221698,0.19645027,59119.0,59118.0,0.494555]
[1724897222083,0.19645027,59119.0,59118.0,0.508085]
[1724897222691,0.19645027,59119.0,59118.0,0.568685]
[1724897223101,0.19645027,59119.0,59118.0,0.278685]
[1724897224695,0.19645027,59119.0,59118.0,0.14963113]
[1724897224899,0.19645027,59119.0,59118.0,0.23418613]
[1724897225486,0.03134176,59119.0,59118.0,0.23418613]
[1724897225691,0.20044976,59119.0,59118.0,0.01553]
[1724897225889,0.11589576,59119.0,59118.0,0.002]
[1724897228697,0.03134176,59119.0,59118.0,0.086555]
[1724897230808,0.03134176,59119.0,59118.0,0.376555]
[1724897234400,0.03134176,59119.0,59118.0,0.086555]
[1724897234998,0.11589576,59119.0,59118.0,0.086555]
[1724897239707,0.11589576,59119.0,59118.0,0.002]
[1724897240006,0.65533162,59119.0,59101.0,0.84519162]
[1724897240214,0.3608,59107.0,59102.0,0.0644]
[1724897240397,0.3608,59107.0,59105.0,0.084572]
[1724897240603,0.07819476,59106.0,59105.0,0.084572]
[1724897243111,0.08119476,59106.0,59105.0,0.086572]
[1724897244608,0.25268051,59106.0,59105.0,0.002]
[1724897245015,0.25033876,59106.0,59105.0,0.002]
[1724897245207,0.25033876,59106.0,59093.0,0.54242]
[1724897245208,0.16576676,59106.0,59097.0,0.145185]
[1724897245408,0.16510851,59105.0,59097.0,0.205885]
[1724897245608,0.07819476,59104.0,59097.0,0.205885]
[1724897245809,0.07819476,59103.0,59097.0,0.205885]
[1724897246108,0.43899476,59102.0,59097.0,0.205885]
[1724897246307,0.07819476,59101.0,59097.0,0.205885]
[1724897246509,0.07819476,59101.0,59098.0,0.084584]
[1724897246510,0.16277376,59101.0,59098.0,0.084584]
[1724897246809,0.16277376,59101.0,59098.0,0.098114]
[1724897247511,0.084579,59101.0,59098.0,0.098114]
[1724897248112,0.085579,59101.0,59098.0,0.098114]
[1724897249018,0.088579,59101.0,59098.0,0.098114]
[1724897249413,0.088579,59101.0,59098.0,0.458914]
[1724897249614,0.004,59101.0,59100.0,0.08483473]
[1724897252722,0.03398786,59101.0,59100.0,0.08483473]
[1724897252922,0.004,59101.0,59100.0,0.08483473]
[1724897253220,0.004,59101.0,59100.0,0.37483473]
[1724897253524,0.004,59101.0,59100.0,0.45941573]
[1724897255522,0.08219476,59101.0,59100.0,0.45941573]
[1724897256618,0.11324411,59101.0,59100.0,0.45941573]
[1724897258414,0.03504935,59101.0,59100.0,0.45941573]
[1724897260223,0.03404935,59101.0,59100.0,0.46441573]
[1724897260723,0.03404935,59101.0,59100.0,0.45941573]
[1724897260927,0.03404935,59101.0,59100.0,0.46241573]
[1724897261128,0.03104935,59101.0,59100.0,0.46641573]
[1724897261319,0.084568,59109.0,59108.0,0.084569]
[1724897261519,0.084568,59109.0,59108.0,0.445369]
[1724897262023,0.084568,59109.0,59108.0,0.084569]
[1724897262418,0.11528748,59109.0,59108.0,0.084569]
[1724897263216,0.03071948,59109.0,59108.0,0.084569]
[1724897263525,0.08481873,59111.0,59110.0,0.084566]
[1724897264728,0.1180206,59111.0,59110.0,0.085566]
[1724897265727,0.1210206,59111.0,59110.0,0.086566]
[1724897270630,0.1180206,59111.0,59110.0,0.085566]
[1724897270830,0.1210206,59111.0,59110.0,0.086566]
[1724897271624,0.1190206,59111.0,59110.0,0.085566]
[1724897271831,0.1210206,59111.0,59110.0,0.086566]
[1724897272031,0.1210206,59111.0,59110.0,0.206566]
[1724897273132,0.0364556,59111.0,59110.0,0.206566]
[1724897274238,0.0334556,59111.0,59110.0,0.205566]
[1724897274435,0.0364556,59111.0,59110.0,0.206566]
[1724897277347,0.0334556,59111.0,59110.0,0.205566]
[1724897277645,0.0364556,59111.0,59110.0,0.206566]
[1724897278338,0.0344556,59111.0,59110.0,0.205566]
[1724897278540,0.0364556,59111.0,59110.0,0.205566]
[1724897278936,0.0344556,59111.0,59110.0,0.205566]
[1724897279129,0.0364556,59111.0,59110.0,0.206566]
[1724897280644,0.5172556,59111.0,59110.0,0.086566]
[1724897280844,0.5172556,59111.0,59107.0,0.01353]
[1724897280845,0.084569,59108.0,59107.0,0.01353]
[1724897281145,0.084573,59106.0,59104.0,0.084575]
[1724897281348,0.12,59105.0,59104.0,0.084575]
[1724897281841,0.12,59105.0,59100.0,0.36105373]
[1724897281842,0.084578,59103.0,59100.0,0.44563373]
[1724897282041,0.36168,59105.0,59100.0,0.44563373]
[1724897282347,0.084579,59101.0,59100.0,0.00025373]
[1724897282737,0.084579,59101.0,59100.0,0.01378373]
[1724897283841,0.084579,59101.0,59100.0,0.01678373]
[1724897284339,0.084579,59101.0,59100.0,0.00325373]
[1724897284746,0.087579,59101.0,59100.0,0.00325373]
[1724897285048,0.087579,59101.0,59100.0,0.00025373]
[1724897285241,0.090579,59101.0,59100.0,0.00025373]
[1724897285835,0.12104814,59101.0,59100.0,0.00025373]
[1724897287634,0.03646914,59101.0,59100.0,0.00025373]
[1724897287837,0.03646914,59101.0,59100.0,0.08483473]
[1724897290935,0.03646914,59101.0,59100.0,0.14553473]
[1724897292147,0.03646914,59101.0,59100.0,0.15906473]
[1724897292751,0.03646914,59101.0,59100.0,0.24364573]
[1724897294650,0.03646914,59101.0,59100.0,0.75124573]
[1724897295652,0.03346914,59101.0,59100.0,0.75124573]
[1724897295844,0.03346914,59101.0,59100.0,0.75424573]
[1724897296553,0.03046914,59101.0,59100.0,0.75624573]
[1724897296754,0.08481873,59111.0,59110.0,0.084566]
[1724897298053,0.08881873,59111.0,59110.0,0.085566]
[1724897298456,0.11929219,59111.0,59110.0,0.085566]
[1724897298849,0.12229219,59111.0,59110.0,0.086566]
[1724897299251,0.03772719,59111.0,59110.0,0.086566]
[1724897301659,0.03772719,59111.0,59110.0,0.171132]
[1724897301848,0.03772719,59111.0,59110.0,0.461132]
[1724897302056,0.03772719,59111.0,59110.0,0.291132]
[1724897303158,0.003,59111.0,59110.0,1.398652]
[1724897303658,1e-06,59111.0,59110.0,1.483218]
[1724897303863,1e-06,59111.0,59110.0,1.398652]
[1724897305053,1e-06,59111.0,59110.0,1.580452]
[1724897306063,1e-06,59111.0,59110.0,1.750452]
[1724897307251,1e-06,59111.0,59110.0,1.78068467]
[1724897307858,1e-06,59111.0,59110.0,1.79421467]
[1724897308562,1e-06,59111.0,59110.0,1.87878067]
[1724897309352,1e-06,59111.0,59110.0,1.79421467]
[1724897309551,0.084535,59132.0,59115.0,0.084559]
[1724897309753,0.16268596,59131.0,59129.0,0.084538]
[1724897309958,0.07814896,59130.0,59129.0,0.084538]
[1724897311662,0.07814896,59130.0,59129.0,0.086538]
[1724897312364,0.084537,59131.0,59129.0,0.086538]
[1724897312562,0.084538,59130.0,59129.0,0.086538]
[1724897312759,0.08124457,59136.0,59129.0,0.086538]
[1724897312956,0.084535,59132.0,59129.0,0.086538]
[1724897315566,0.084535,59132.0,59130.0,0.084538]
[1724897316857,0.084535,59132.0,59130.0,0.085538]
[1724897317963,0.084535,59132.0,59131.0,0.084536]
[1724897318165,0.3608,59135.0,59132.0,0.084535]
[1724897318359,0.084533,59134.0,59132.0,0.084535]
[1724897318564,0.26751441,59134.0,59132.0,0.084535]
[1724897319267,0.26751441,59134.0,59132.0,0.085535]
[1724897319774,0.03105387,59136.0,59135.0,0.084531]
[1724897320068,0.08452,59143.0,59133.0,0.3608]
[1724897320269,0.08452,59143.0,59140.0,0.084522]
[1724897320468,0.08452,59143.0,59139.0,0.3608]
[1724897321774,0.08452,59143.0,59142.0,0.084521]
[1724897323970,0.08452,59143.0,59142.0,0.085521]
[1724897324276,0.08452,59143.0,59142.0,0.086521]
[1724897327179,0.17480542,59147.0,59144.0,0.084517]
[1724897327869,0.084515,59146.0,59144.0,0.084517]
[1724897328077,0.084515,59146.0,59144.0,0.204517]
[1724897328468,0.084515,59146.0,59144.0,0.206517]
[1724897329174,0.204516,59145.0,59144.0,0.086517]
[1724897330882,0.204516,59145.0,59144.0,0.085517]
[1724897331080,0.084516,59145.0,59144.0,0.206517]
[1724897331383,0.084516,59145.0,59144.0,0.086517]
[1724897334588,0.204516,59145.0,59144.0,0.086517]
[1724897336888,0.084516,59145.0,59144.0,0.086517]
[1724897339290,0.03109042,59147.0,59146.0,0.084515]
[1724897339483,0.084508,59151.0,59145.0,0.6052]
[1724897339681,0.084508,59151.0,59149.0,0.12]
[1724897339987,0.1922697,59150.0,59149.0,0.204509]
[1724897340489,0.1922697,59150.0,59149.0,0.084509]
[1724897341285,0.1922697,59150.0,59149.0,0.085509]
[1724897341985,0.084508,59151.0,59149.0,0.085509]
[1724897341986,0.084508,59151.0,59150.0,0.084509]
[1724897343191,0.084508,59151.0,59150.0,0.085509]
[1724897344493,0.084508,59151.0,59150.0,0.086509]
[1724897345687,0.03045549,59153.0,59152.0,0.084506]
[1724897345883,0.12,59153.0,59152.0,0.084506]
[1724897346791,0.204505,59153.0,59152.0,0.084506]
[1724897346990,0.204505,59153.0,59152.0,0.085506]
[1724897348097,0.204505,59153.0,59152.0,0.086506]
[1724897349297,0.28263152,59153.0,59152.0,0.086506]
[1724897350199,0.28263152,59153.0,59152.0,0.002]
[1724897350397,1.58154024,59153.0,59143.0,0.3608]
[1724897350598,0.12,59144.0,59143.0,0.445319]
[1724897350903,0.19812652,59144.0,59143.0,0.445319]
[1724897351596,0.19812652,59144.0,59143.0,0.446319]
[1724897352691,0.19812652,59144.0,59143.0,0.447319]
[1724897353000,0.12,59144.0,59143.0,0.447319]
[1724897353696,0.121,59144.0,59143.0,0.447319]
[1724897353893,0.121,59144.0,59143.0,0.446319]
[1724897354090,0.121,59144.0,59143.0,0.447319]
[1724897354091,0.123,59144.0,59143.0,0.447319]
[1724897354301,0.207518,59144.0,59143.0,0.447319]
[1724897355097,0.207518,59144.0,59143.0,0.086519]
[1724897355595,0.207518,59144.0,59143.0,0.002]
[1724897355997,0.084526,59138.0,59127.0,0.084542]
[1724897356298,0.12,59128.0,59127.0,0.084542]
[1724897357300,0.084542,59127.0,59126.0,0.0598]
[1724897357605,0.3608,59127.0,59123.0,0.0592]
[1724897357803,0.12,59125.0,59123.0,0.0592]
[1724897357994,0.12854085,59125.0,59123.0,0.0592]
[1724897358190,0.00854085,59125.0,59123.0,0.0592]
[1724897358400,0.445342,59127.0,59123.0,0.0592]
[1724897358709,0.59102124,59127.0,59124.0,0.12]
[1724897360908,0.12,59125.0,59123.0,0.143748]
[1724897361109,0.12857532,59125.0,59123.0,0.143748]
[1724897361805,0.12857532,59125.0,59123.0,0.263748]
[1724897361806,0.00857532,59125.0,59123.0,0.263748]
[1724897362001,0.59298124,59127.0,59123.0,0.263748]
[1724897362306,0.19296154,59126.0,59123.0,0.263748]
[1724897362509,0.20121446,59126.0,59123.0,0.263748]
[1724897363704,0.12,59124.0,59123.0,0.143748]
[1724897366606,0.12,59124.0,59123.0,0.504548]
[1724897367007,0.12,59124.0,59123.0,0.143748]
[1724897374112,0.12,59124.0,59122.0,0.00025373]
[1724897375010,0.084548,59123.0,59122.0,0.00025373]
[1724897375807,0.084548,59123.0,59122.0,0.00225373]
[1724897376302,0.084548,59123.0,59122.0,0.00125373]
[1724897376503,0.084548,59123.0,59122.0,0.00225373]
[1724897382711,0.12,59124.0,59122.0,0.00225373]
[1724897382916,0.12,59124.0,59122.0,0.08680273]
[1724897383902,0.00825292,59126.0,59125.0,0.084545]
[1724897384109,0.12825292,59126.0,59125.0,0.084545]
[1724897384411,0.12,59126.0,59125.0,0.084545]
[1724897384809,0.12841119,59126.0,59125.0,0.084545]
[1724897385203,0.13041119,59126.0,59125.0,0.084545]
[1724897386220,0.13241119,59126.0,59125.0,0.084545]
[1724897387010,0.16362069,59126.0,59125.0,0.084545]
[1724897392810,0.1552095,59126.0,59125.0,0.084545]
[1724897396112,0.1552095,59126.0,59125.0,0.373635]
[1724897396113,0.004,59126.0,59125.0,0.373635]